fUST/lending_fUST_20250806
["ID","MTS","AMOUNT","RATE_DAILY","PERIOD"]
[377446793,1754415042530,-465.96442489,0.00027397,2]
[377446795,1754415042539,-460.0,0.00027397,2]
[377446797,1754415042548,-460.0,0.00027397,2]
[377446799,1754415042557,-460.0,0.00027397,2]
[377446801,1754415042567,-462.65729177,0.00027397,2]
[377446803,1754415042577,-460.0,0.00027397,2]
[377446805,1754415042586,-460.0,0.00027397,2]
[377446807,1754415042595,-461.44259635,0.00027397,2]
[377446809,1754415042604,-460.0,0.00027397,2]
[377446811,1754415042614,-540.0,0.00027397,2]
[377446814,1754415042623,-460.0,0.00027397,2]
[377446815,1754415042632,-460.0,0.00027397,2]
[377446817,1754415042641,-460.0,0.00027397,2]
[377446819,1754415042651,-460.0,0.00027397,2]
[377446821,1754415042659,-460.0,0.00027397,2]
[377446823,1754415042668,-461.55219541,0.00027397,2]
[377446825,1754415042678,-646.27,0.00027397,2]
[377446828,1754415042687,-460.0,0.00027397,2]
[377446830,1754415042696,-460.0,0.00027397,2]
[377446832,1754415042707,-460.0,0.00027397,2]
[377446834,1754415042716,-928.38,0.00027397,2]
[377446836,1754415042725,-1122.11,0.00027397,2]
[377446838,1754415042734,-470.21280279,0.00027397,2]
[377446840,1754415042744,-1784.15,0.00027397,2]
[377446842,1754415042753,-461.21287427,0.00027397,2]
[377446844,1754415042762,-460.0,0.00027397,2]
[377446846,1754415042772,-460.0,0.00027397,2]
[377446848,1754415042782,-460.0,0.00027397,2]
[377446850,1754415042791,-1060.85,0.00027397,2]
[377446852,1754415042800,-320.34245207,0.00027397,2]
[377446870,1754415042963,-460.0,0.00027397,2]
[377446873,1754415042975,-460.0,0.00027397,2]
[377446875,1754415042985,-460.0,0.00027397,2]
[377446877,1754415042994,-460.0,0.00027397,2]
[377446879,1754415043003,-460.0,0.00027397,2]
[377446881,1754415043013,-460.0,0.00027397,2]
[377446883,1754415043026,-464.47872777,0.00027397,2]
[377446885,1754415043035,-460.0,0.00027397,2]
[377446887,1754415043045,-464.56576644,0.00027397,2]
[377446889,1754415043055,-460.0,0.00027397,2]
[377446892,1754415043065,-500.0,0.00027397,2]
[377446894,1754415043075,-466.69684792,0.00027397,2]
[377446896,1754415043084,-460.0,0.00027397,2]
[377446898,1754415043094,-460.0,0.00027397,2]
[377446900,1754415043104,-701.38,0.00027397,2]
[377446902,1754415043114,-460.0,0.00027397,2]
[377446904,1754415043124,-460.0,0.00027397,2]
[377446906,1754415043134,-465.5887698,0.00027397,2]
[377446909,1754415043143,-460.0,0.00027397,2]
[377446912,1754415043152,-1093.8,0.00027397,2]
[377446915,1754415043162,-460.0,0.00027397,2]
[377446917,1754415043171,-460.0,0.00027397,2]
[377446919,1754415043180,-525.29,0.00027397,2]
[377446921,1754415043190,-460.0,0.00027397,2]
[377446923,1754415043200,-460.0,0.00027397,2]
[377446926,1754415043209,-1137.67,0.00027397,2]
[377446928,1754415043219,-460.0,0.00027397,2]
[377446930,1754415043228,-466.55791922,0.00027397,2]
[377446932,1754415043237,-460.0,0.00027397,2]
[377446934,1754415043246,-460.0,0.00027397,2]
[377446936,1754415043255,-460.0,0.00027397,2]
[377446938,1754415043265,-460.0,0.00027397,2]
[377446940,1754415043274,-460.0,0.00027397,2]
[377446942,1754415043283,-462.28685589,0.00027397,2]
[377446944,1754415043292,-460.0,0.00027397,2]
[377446946,1754415043302,-2833.3,0.00027397,2]
[377446948,1754415043311,-460.0,0.00027397,2]
[377446950,1754415043322,-460.0,0.00027397,2]
[377446952,1754415043330,-462.80836866,0.00027397,2]
[377446954,1754415043341,-460.0,0.00027397,2]
[377446956,1754415043350,-460.0,0.00027397,2]
[377446958,1754415043359,-460.0,0.00027397,2]
[377446960,1754415043368,-460.0,0.00027397,2]
[377446962,1754415043377,-467.03636495,0.00027397,2]
[377446964,1754415043387,-460.0,0.00027397,2]
[377446966,1754415043396,-460.0,0.00027397,2]
[377446968,1754415043406,-460.0,0.00027397,2]
[377446971,1754415043418,-460.0,0.00027397,2]
[377446973,1754415043428,-460.0,0.00027397,2]
[377446975,1754415043438,-221.65440906,0.00027397,2]
[377446977,1754415043447,-460.0,0.00027397,2]
[377446979,1754415043456,-460.0,0.00027397,2]
[377446981,1754415043466,-460.0,0.00027397,2]
[377446983,1754415043476,-215.87217929,0.00027397,2]
[377446985,1754415043485,-460.0,0.00027397,2]
[377446987,1754415043495,-460.0,0.00027397,2]
[377446989,1754415043504,-460.0,0.00027397,2]
[377446991,1754415043514,-460.0,0.00027397,2]
[377446993,1754415043524,-1926.76,0.00027397,2]
[377446994,1754415043533,-464.95430982,0.00027397,2]
[377446996,1754415043543,-460.0,0.00027397,2]
[377446998,1754415043552,-460.0,0.00027397,2]
[377447001,1754415043562,-460.0,0.00027397,2]
[377447003,1754415043572,-460.0,0.00027397,2]
[377447005,1754415043581,-460.0,0.00027397,2]
[377447007,1754415043590,-460.0,0.00027397,2]
[377447009,1754415043600,-460.0,0.00027397,2]
[377447011,1754415043609,-460.0,0.00027397,2]
[377447013,1754415043619,-1547.47,0.00027397,2]
[377447015,1754415043628,-1135.24,0.00027397,2]
[377447017,1754415043637,-460.0,0.00027397,2]
[377447019,1754415043646,-460.0,0.00027397,2]
[377447021,1754415043656,-675.85,0.00027397,2]
[377447023,1754415043665,-460.0,0.00027397,2]
[377447025,1754415043674,-460.0,0.00027397,2]
[377447027,1754415043684,-460.0,0.00027397,2]
[377447029,1754415043694,-500.0,0.00027397,2]
[377447031,1754415043704,-460.0,0.00027397,2]
[377447034,1754415043713,-862.88,0.00027397,2]
[377447036,1754415043723,-469.82015924,0.00027397,2]
[377447038,1754415043732,-462.3,0.00027397,2]
[377447040,1754415043741,-828.49,0.00027397,2]
[377447042,1754415043750,-460.0,0.00027397,2]
[377447044,1754415043761,-460.0,0.00027397,2]
[377447045,1754415043770,-460.0,0.00027397,2]
[377447046,1754415043779,-460.0,0.00027397,2]
[377447047,1754415043789,-460.0,0.00027397,2]
[377447048,1754415043798,-460.0,0.00027397,2]
[377447049,1754415043807,-462.02012178,0.00027397,2]
[377447050,1754415043817,-460.0,0.00027397,2]
[377447051,1754415043827,-442.45408232,0.00027397,2]
[377447052,1754415043836,-460.0,0.00027397,2]
[377447053,1754415043845,-460.0,0.00027397,2]
[377447054,1754415043856,-460.0,0.00027397,2]
[377447055,1754415043865,-460.0,0.00027397,2]
[377447056,1754415043874,-460.0,0.00027397,2]
[377447057,1754415043883,-460.0,0.00027397,2]
[377447058,1754415043892,-460.0,0.00027397,2]
[377447059,1754415043902,-465.81470521,0.00027397,2]
[377447060,1754415043911,-460.0,0.00027397,2]
[377447061,1754415043920,-503.15066488,0.00027397,2]
[377447062,1754415043929,-460.0,0.00027397,2]
[377447063,1754415043939,-827.63,0.00027397,2]
[377447064,1754415043948,-460.0,0.00027397,2]
[377447065,1754415043957,-463.78203178,0.00027397,2]
[377447066,1754415043967,-460.0,0.00027397,2]
[377447067,1754415043976,-460.0,0.00027397,2]
[377447068,1754415043986,-460.0,0.00027397,2]
[377447069,1754415043996,-1381.82,0.00027397,2]
[377447070,1754415044005,-460.0,0.00027397,2]
[377447071,1754415044016,-460.0,0.00027397,2]
[377447072,1754415044032,-460.0,0.00027397,2]
[377447074,1754415044041,-460.0,0.00027397,2]
[377447076,1754415044051,-693.76,0.00027397,2]
[377447078,1754415044064,-676.55,0.00027397,2]
[377447080,1754415044074,-1179.1,0.00027397,2]
[377447083,1754415044087,-500.0,0.00027397,2]
[377447085,1754415044104,-500.0,0.00027397,2]
[377447088,1754415044118,-500.0,0.00027397,2]
[377447090,1754415044132,-500.0,0.00027397,2]
[377447092,1754415044144,-500.0,0.00027397,2]
[377447095,1754415044157,-500.0,0.00027397,2]
[377447097,1754415044171,-471.73,0.00027397,2]
[377447100,1754415044184,-460.0,0.00027397,2]
[377447102,1754415044197,-460.0,0.00027397,2]
[377447104,1754415044210,-460.0,0.00027397,2]
[377447107,1754415044223,-460.0,0.00027397,2]
[377447109,1754415044236,-330.2731705,0.00027397,2]
[377447112,1754415044251,-464.63171142,0.00027397,2]
[377447114,1754415044263,-460.0,0.00027397,2]
[377447116,1754415044275,-465.79634005,0.00027397,2]
[377447119,1754415044288,-1188.0,0.00027397,2]
[377447121,1754415044300,-463.5038537,0.00027397,2]
[377447123,1754415044314,-464.81005058,0.00027397,2]
[377447126,1754415044327,-460.0,0.00027397,2]
[377447128,1754415044338,-460.0,0.00027397,2]
[377447130,1754415044350,-460.0,0.00027397,2]
[377447132,1754415044361,-460.0,0.00027397,2]
[377447134,1754415044374,-460.0,0.00027397,2]
[377447137,1754415044385,-461.96633068,0.00027397,2]
[377447139,1754415044398,-460.0,0.00027397,2]
[377447141,1754415044412,-460.0,0.00027397,2]
[377447144,1754415044425,-151.0,0.000274,11]
[377447146,1754415044438,-294.95302356,0.00027468,5]
[377447149,1754415044451,-1500.0,0.00027468,5]
[377447151,1754415044464,-500.0,0.00027468,5]
[377447154,1754415044478,-1500.0,0.00027468,5]
[377447156,1754415044488,-1500.0,0.00027468,5]
[377447158,1754415044498,-1500.0,0.00027468,5]
[377447160,1754415044509,-233.01668684,0.00027468,5]
[377447162,1754415044520,-1500.0,0.00027468,5]
[377447165,1754415044535,-514.45848716,0.00027485,2]
[377447167,1754415044548,-151.0,0.000275,20]
[377447169,1754415044559,-2684.70047154,0.00027571,2]
[377447171,1754415044570,-1000.0,0.000276,2]
[377447174,1754415044581,-554.7682974,0.00027661,2]
[377447176,1754415044593,-153.25,0.00027661,15]
[377447178,1754415044605,-597.93,0.00027671,2]
[377447180,1754415044617,-554.88419141,0.00027671,2]
[377447183,1754415044628,-460.0,0.00027671,2]
[377447185,1754415044639,-222.83381725,0.00027671,2]
[377447187,1754415044650,-460.0,0.00027671,2]
[377447189,1754415044661,-571.67,0.00027671,2]
[377447192,1754415044673,-460.0,0.00027671,2]
[377447194,1754415044685,-460.0,0.00027671,2]
[377447196,1754415044696,-460.0,0.00027671,2]
[377447198,1754415044708,-460.0,0.00027671,2]
[377447201,1754415044719,-460.0,0.00027671,2]
[377447203,1754415044731,-460.0,0.00027671,2]
[377447205,1754415044742,-460.0,0.00027671,2]
[377447207,1754415044754,-212.33975691,0.00027671,2]
[377447210,1754415044764,-460.0,0.00027671,2]
[377447212,1754415044775,-464.59765188,0.00027671,2]
[377447214,1754415044786,-465.03013377,0.00027671,2]
[377447216,1754415044797,-500.0,0.00027671,2]
[377447218,1754415044808,-460.0,0.00027671,2]
[377447221,1754415044819,-460.0,0.00027671,2]
[377447223,1754415044831,-460.0,0.00027671,2]
[377447225,1754415044842,-986.09,0.00027671,2]
[377447227,1754415044855,-540.0,0.00027671,2]
[377447230,1754415044868,-460.0,0.00027671,2]
[377447232,1754415044879,-464.06820011,0.00027671,2]
[377447234,1754415044890,-460.0,0.00027671,2]
[377447237,1754415044902,-460.0,0.00027671,2]
[377447239,1754415044913,-3352.64,0.00027671,2]
[377447241,1754415044924,-460.0,0.00027671,2]
[377447243,1754415044936,-460.0,0.00027671,2]
[377447245,1754415044948,-460.0,0.00027671,2]
[377447247,1754415044959,-460.0,0.00027671,2]
[377447249,1754415044970,-460.0,0.00027671,2]
[377447252,1754415044981,-565.26,0.00027671,2]
[377447254,1754415044992,-460.0,0.00027671,2]
[377447256,1754415045003,-460.0,0.00027671,2]
[377447258,1754415045018,-500.0,0.00027671,5]
[377447261,1754415045031,-460.0,0.00027671,2]
[377447263,1754415045043,-460.0,0.00027671,2]
[377447265,1754415045054,-460.0,0.00027671,2]
[377447267,1754415045067,-460.0,0.00027671,2]
[377447269,1754415045078,-460.0,0.00027671,2]
[377447272,1754415045089,-1270.03,0.00027671,2]
[377447274,1754415045102,-460.0,0.00027671,2]
[377447276,1754415045113,-460.0,0.00027671,2]
[377447278,1754415045124,-460.0,0.00027671,2]
[377447280,1754415045135,-460.0,0.00027671,2]
[377447282,1754415045146,-464.55059867,0.00027671,2]
[377447285,1754415045158,-460.0,0.00027671,2]
[377447287,1754415045169,-1043.48,0.00027671,2]
[377447289,1754415045180,-460.0,0.00027671,2]
[377447291,1754415045191,-460.0,0.00027671,2]
[377447293,1754415045202,-460.0,0.00027671,2]
[377447296,1754415045214,-460.0,0.00027671,2]
[377447298,1754415045225,-460.0,0.00027671,2]
[377447300,1754415045236,-477.67445818,0.00027671,2]
[377447302,1754415045247,-211.59770744,0.00027671,2]
[377447304,1754415045258,-460.0,0.00027671,2]
[377447307,1754415045270,-460.0,0.00027671,2]
[377447309,1754415045281,-460.0,0.00027671,2]
[377447311,1754415045292,-460.0,0.00027671,2]
[377447313,1754415045303,-472.32073146,0.00027671,2]
[377447315,1754415045316,-460.0,0.00027671,2]
[377447317,1754415045328,-460.0,0.00027671,2]
[377447320,1754415045340,-460.0,0.00027671,2]
[377447322,1754415045351,-460.0,0.00027671,2]
[377447324,1754415045362,-460.0,0.00027671,2]
[377447326,1754415045373,-460.0,0.00027671,2]
[377447328,1754415045385,-460.0,0.00027671,2]
[377447331,1754415045396,-460.0,0.00027671,2]
[377447333,1754415045407,-460.0,0.00027671,2]
[377447335,1754415045418,-460.0,0.00027671,2]
[377447337,1754415045429,-460.0,0.00027671,2]
[377447339,1754415045441,-430.72132913,0.00027671,2]
[377447342,1754415045453,-460.0,0.00027671,2]
[377447360,1754415045609,-460.0,0.00027671,2]
[377447363,1754415045630,-460.0,0.00027671,2]
[377447365,1754415045640,-460.0,0.00027671,2]
[377447366,1754415045650,-460.0,0.00027671,2]
[377447368,1754415045659,-460.0,0.00027671,2]
[377447370,1754415045671,-460.0,0.00027671,2]
[377447372,1754415045682,-460.0,0.00027671,2]
[377447374,1754415045692,-460.0,0.00027671,2]
[377447376,1754415045701,-320.0,0.00027671,2]
[377447378,1754415045711,-460.0,0.00027671,2]
[377447380,1754415045720,-669.24,0.00027671,2]
[377447382,1754415045729,-463.40778993,0.00027671,2]
[377447384,1754415045738,-460.0,0.00027671,2]
[377447386,1754415045748,-460.0,0.00027671,2]
[377447388,1754415045758,-460.0,0.00027671,2]
[377447390,1754415045767,-460.0,0.00027671,2]
[377447392,1754415045777,-460.0,0.00027671,2]
[377447394,1754415045785,-468.30923617,0.00027671,2]
[377447396,1754415045795,-460.0,0.00027671,2]
[377447398,1754415045804,-460.0,0.00027671,2]
[377447400,1754415045816,-460.0,0.00027671,2]
[377447402,1754415045826,-460.0,0.00027671,2]
[377447404,1754415045835,-460.0,0.00027671,2]
[377447406,1754415045845,-460.0,0.00027671,2]
[377447408,1754415045855,-471.16963835,0.00027671,2]
[377447410,1754415045863,-460.0,0.00027671,2]
[377447412,1754415045872,-460.0,0.00027671,2]
[377447414,1754415045882,-460.0,0.00027671,2]
[377447416,1754415045891,-578.65605362,0.00027671,2]
[377447418,1754415045900,-460.0,0.00027671,2]
[377447420,1754415045909,-460.0,0.00027671,2]
[377447422,1754415045918,-460.0,0.00027671,2]
[377447424,1754415045927,-460.0,0.00027671,2]
[377447426,1754415045937,-460.0,0.00027671,2]
[377447428,1754415045948,-460.0,0.00027671,2]
[377447430,1754415045957,-460.0,0.00027671,2]
[377447432,1754415045966,-460.0,0.00027671,2]
[377447434,1754415045976,-661.32,0.00027671,2]
[377447436,1754415045987,-460.0,0.00027671,2]
[377447438,1754415045998,-465.24303304,0.00027671,2]
[377447440,1754415046007,-460.0,0.00027671,2]
[377447442,1754415046020,-460.0,0.00027671,2]
[377447444,1754415046037,-460.0,0.00027671,2]
[377447447,1754415046047,-460.0,0.00027671,2]
[377447449,1754415046056,-294.43682432,0.00027671,2]
[377447452,1754415046066,-460.0,0.00027671,2]
[377447455,1754415046076,-460.0,0.00027671,2]
[377447458,1754415046086,-473.95865051,0.00027671,2]
[377447461,1754415046096,-460.0,0.00027671,2]
[377447464,1754415046106,-460.0,0.00027671,2]
[377447466,1754415046116,-460.0,0.00027671,2]
[377447468,1754415046125,-846.11,0.00027671,2]
[377447470,1754415046135,-460.0,0.00027671,2]
[377447472,1754415046144,-460.0,0.00027671,2]
[377447474,1754415046154,-500.0,0.00027671,2]
[377447476,1754415046163,-460.0,0.00027671,2]
[377447479,1754415046173,-460.0,0.00027671,2]
[377447482,1754415046182,-460.0,0.00027671,2]
[377447485,1754415046192,-460.0,0.00027671,2]
[377447487,1754415046201,-460.0,0.00027671,2]
[377447489,1754415046211,-244.7497992,0.00027671,2]
[377447491,1754415046220,-460.0,0.00027671,2]
[377447493,1754415046230,-460.0,0.00027671,2]
[377447495,1754415046240,-461.35475137,0.00027671,2]
[377447497,1754415046249,-3818.35,0.00027671,2]
[377447499,1754415046258,-443.49641145,0.00027671,2]
[377447501,1754415046267,-460.0,0.00027671,2]
[377447503,1754415046278,-2389.53,0.00027671,2]
[377447505,1754415046287,-460.0,0.00027671,2]
[377447507,1754415046296,-460.0,0.00027671,2]
[377447509,1754415046305,-535.36,0.00027671,2]
[377447511,1754415046316,-449.78331869,0.00027671,2]
[377447513,1754415046325,-418.72746511,0.00027671,2]
[377447515,1754415046335,-460.0,0.00027671,2]
[377447517,1754415046345,-441.08510287,0.00027671,2]
[377447518,1754415046354,-460.0,0.00027671,2]
[377447519,1754415046364,-460.0,0.00027671,2]
[377447520,1754415046373,-56223.51,0.00027671,2]
[377447521,1754415046382,-460.0,0.00027671,2]
[377447522,1754415046392,-467.92902053,0.00027671,2]
[377447523,1754415046401,-460.0,0.00027671,2]
[377447524,1754415046410,-235.98932518,0.00027671,2]
[377447525,1754415046420,-164.20093309,0.00027671,2]
[377447526,1754415046428,-463.469309,0.00027671,2]
[377447527,1754415046437,-460.0,0.00027671,2]
[377447528,1754415046446,-460.0,0.00027671,2]
[377447529,1754415046455,-2020.1,0.00027671,2]
[377447530,1754415046465,-1687.27,0.00027671,2]
[377447532,1754415046474,-460.0,0.00027671,2]
[377447534,1754415046483,-460.0,0.00027671,2]
[377447536,1754415046492,-460.0,0.00027671,2]
[377447538,1754415046501,-460.0,0.00027671,2]
[377447541,1754415046511,-460.0,0.00027671,2]
[377447542,1754415046519,-487.65,0.00027671,2]
[377447544,1754415046528,-460.0,0.00027671,2]
[377447547,1754415046538,-463.0611131,0.00027671,2]
[377447549,1754415046546,-465.62984822,0.00027671,2]
[377447551,1754415046555,-460.0,0.00027671,2]
[377447553,1754415046564,-460.0,0.00027671,2]
[377447555,1754415046574,-460.0,0.00027671,2]
[377447557,1754415046584,-460.0,0.00027671,2]
[377447559,1754415046593,-460.0,0.00027671,2]
[377447561,1754415046602,-460.0,0.00027671,2]
[377447563,1754415046612,-1000.0,0.00027671,2]
[377447564,1754415046622,-460.0,0.00027671,2]
[377447566,1754415046636,-460.0,0.00027671,2]
[377447569,1754415046649,-460.0,0.00027671,2]
[377447570,1754415046660,-460.0,0.00027671,2]
[377447573,1754415046670,-460.0,0.00027671,2]
[377447574,1754415046681,-460.0,0.00027671,2]
[377447576,1754415046691,-460.0,0.00027671,2]
[377447579,1754415046700,-460.0,0.00027671,2]
[377447581,1754415046709,-464.37063972,0.00027671,2]
[377447583,1754415046720,-330.34100537,0.00027671,2]
[377447585,1754415046729,-460.0,0.00027671,2]
[377447587,1754415046739,-460.0,0.00027671,2]
[377447589,1754415046749,-460.0,0.00027671,2]
[377447591,1754415046758,-460.0,0.00027671,2]
[377447593,1754415046768,-460.0,0.00027671,2]
[377447595,1754415046777,-460.0,0.00027671,2]
[377447598,1754415046786,-460.0,0.00027671,2]
[377447600,1754415046796,-460.0,0.00027671,2]
[377447602,1754415046805,-466.32637161,0.00027671,2]
[377447604,1754415046814,-460.0,0.00027671,2]
[377447606,1754415046824,-460.0,0.00027671,2]
[377447608,1754415046833,-460.0,0.00027671,2]
[377447609,1754415046843,-460.0,0.00027671,2]
[377447612,1754415046853,-646.27,0.00027671,2]
[377447614,1754415046862,-460.0,0.00027671,2]
[377447616,1754415046871,-460.0,0.00027671,2]
[377447618,1754415046881,-463.03840258,0.00027671,2]
[377447620,1754415046890,-928.38,0.00027671,2]
[377447621,1754415046899,-1122.11,0.00027671,2]
[377447623,1754415046910,-1784.15,0.00027671,2]
[377447625,1754415046921,-460.0,0.00027671,2]
[377447627,1754415046931,-460.0,0.00027671,2]
[377447629,1754415046941,-1060.85,0.00027671,2]
[377447631,1754415046951,-460.0,0.00027671,2]
[377447634,1754415046962,-461.94482858,0.00027671,2]
[377447636,1754415046974,-460.0,0.00027671,2]
[377447638,1754415046983,-460.0,0.00027671,2]
[377447640,1754415046993,-460.0,0.00027671,2]
[377447642,1754415047003,-460.0,0.00027671,2]
[377447643,1754415047012,-254.69678522,0.00027671,2]
[377447645,1754415047023,-460.0,0.00027671,2]
[377447647,1754415047032,-460.0,0.00027671,2]
[377447649,1754415047042,-701.38,0.00027671,2]
[377447652,1754415047051,-460.0,0.00027671,2]
[377447654,1754415047064,-460.0,0.00027671,2]
[377447656,1754415047075,-460.0,0.00027671,2]
[377447658,1754415047084,-460.0,0.00027671,2]
[377447660,1754415047095,-1093.8,0.00027671,2]
[377447662,1754415047109,-460.0,0.00027671,2]
[377447663,1754415047119,-460.0,0.00027671,2]
[377447666,1754415047129,-525.29,0.00027671,2]
[377447668,1754415047138,-460.0,0.00027671,2]
[377447670,1754415047148,-460.0,0.00027671,2]
[377447672,1754415047157,-1137.67,0.00027671,2]
[377447674,1754415047166,-460.0,0.00027671,2]
[377447676,1754415047175,-460.0,0.00027671,2]
[377447677,1754415047184,-416.28278913,0.00027671,2]
[377447680,1754415047194,-270.20706565,0.00027671,2]
[377447682,1754415047203,-460.0,0.00027671,2]
[377447684,1754415047212,-460.0,0.00027671,2]
[377447686,1754415047221,-460.0,0.00027671,2]
[377447688,1754415047231,-2833.3,0.00027671,2]
[377447690,1754415047240,-460.0,0.00027671,2]
[377447692,1754415047249,-460.0,0.00027671,2]
[377447694,1754415047258,-460.0,0.00027671,2]
[377447696,1754415047267,-460.0,0.00027671,2]
[377447698,1754415047276,-460.0,0.00027671,2]
[377447699,1754415047286,-460.0,0.00027671,2]
[377447702,1754415047300,-460.0,0.00027671,2]
[377447704,1754415047310,-460.0,0.00027671,2]
[377447706,1754415047321,-460.0,0.00027671,2]
[377447708,1754415047331,-460.0,0.00027671,2]
[377447709,1754415047340,-464.43764782,0.00027671,2]
[377447711,1754415047350,-460.0,0.00027671,2]
[377447713,1754415047359,-460.0,0.00027671,2]
[377447716,1754415047370,-460.0,0.00027671,2]
[377447718,1754415047379,-392.17585266,0.00027671,2]
[377447719,1754415047389,-474.71259427,0.00027671,2]
[377447722,1754415047399,-1926.76,0.00027671,2]
[377447724,1754415047408,-460.0,0.00027671,2]
[377447726,1754415047417,-464.99348653,0.00027671,2]
[377447728,1754415047427,-460.0,0.00027671,2]
[377447730,1754415047436,-460.0,0.00027671,2]
[377447732,1754415047446,-475.00294509,0.00027671,2]
[377447733,1754415047456,-460.0,0.00027671,2]
[377447736,1754415047466,-460.0,0.00027671,2]
[377447738,1754415047476,-460.0,0.00027671,2]
[377447740,1754415047485,-1547.47,0.00027671,2]
[377447742,1754415047494,-1135.24,0.00027671,2]
[377447743,1754415047503,-460.0,0.00027671,2]
[377447745,1754415047512,-460.0,0.00027671,2]
[377447748,1754415047524,-675.85,0.00027671,2]
[377447749,1754415047542,-460.0,0.00027671,2]
[377447752,1754415047563,-460.0,0.00027671,2]
[377447754,1754415047576,-500.0,0.00027671,2]
[377447756,1754415047586,-460.0,0.00027671,2]
[377447758,1754415047595,-460.0,0.00027671,2]
[377447760,1754415047604,-862.88,0.00027671,2]
[377447762,1754415047614,-462.3,0.00027671,2]
[377447764,1754415047624,-828.49,0.00027671,2]
[377447766,1754415047633,-460.0,0.00027671,2]
[377447768,1754415047642,-460.0,0.00027671,2]
[377447770,1754415047652,-460.0,0.00027671,2]
[377447772,1754415047661,-460.0,0.00027671,2]
[377447774,1754415047670,-460.0,0.00027671,2]
[377447776,1754415047680,-460.0,0.00027671,2]
[377447778,1754415047689,-469.77863494,0.00027671,2]
[377447780,1754415047699,-460.0,0.00027671,2]
[377447782,1754415047708,-460.0,0.00027671,2]
[377447784,1754415047717,-460.0,0.00027671,2]
[377447786,1754415047726,-460.0,0.00027671,2]
[377447788,1754415047736,-460.0,0.00027671,2]
[377447790,1754415047746,-460.0,0.00027671,2]
[377447792,1754415047755,-460.0,0.00027671,2]
[377447794,1754415047765,-460.0,0.00027671,2]
[377447796,1754415047774,-827.63,0.00027671,2]
[377447798,1754415047784,-460.0,0.00027671,2]
[377447800,1754415047792,-460.0,0.00027671,2]
[377447802,1754415047802,-460.0,0.00027671,2]
[377447804,1754415047812,-460.0,0.00027671,2]
[377447806,1754415047822,-1381.82,0.00027671,2]
[377447808,1754415047831,-460.0,0.00027671,2]
[377447810,1754415047841,-460.0,0.00027671,2]
[377447812,1754415047850,-460.0,0.00027671,2]
[377447814,1754415047859,-693.76,0.00027671,2]
[377447816,1754415047868,-676.55,0.00027671,2]
[377447818,1754415047877,-1179.1,0.00027671,2]
[377447820,1754415047886,-471.73,0.00027671,2]
[377447822,1754415047895,-465.54654901,0.00027671,2]
[377447824,1754415047905,-460.0,0.00027671,2]
[377447826,1754415047915,-460.0,0.00027671,2]
[377447828,1754415047924,-460.0,0.00027671,2]
[377447830,1754415047933,-460.0,0.00027671,2]
[377447832,1754415047942,-1188.0,0.00027671,2]